fUST/lending_fUST_20260506
["ID","MTS","AMOUNT","RATE_DAILY","PERIOD"]
[421736387,1778082641000,-500.0,0.00012054,2]
[421736375,1778082641000,-1383.64,0.00012054,2]
[421736381,1778082641000,-500.0,0.00012054,2]
[421736383,1778082641000,-1792.75,0.00012054,2]
[421736382,1778082641000,-3790.81,0.00012054,2]
[421736385,1778082641000,-513.29718979,0.00012054,2]
[421736380,1778082641000,-3404.47,0.00012054,2]
[421736390,1778082641000,-968.53,0.00012054,2]
[421736398,1778082641000,-161.28,0.000121,2]
[421736399,1778082641000,-399.28933182,0.000121,2]
[421736401,1778082641000,-500.0,0.00012102,2]
[421736400,1778082641000,-399.28933182,0.000121,2]
[421736391,1778082641000,-500.0,0.00012054,2]
[421736393,1778082641000,-151.0,0.00012081,2]
[421736388,1778082641000,-500.0,0.00012054,2]
[421736395,1778082641000,-151.0,0.00012081,2]
[421736396,1778082641000,-22545.59858946,0.000121,10]
[421736394,1778082641000,-151.0,0.00012081,2]
[421736392,1778082641000,-500.0,0.00012054,2]
[421736397,1778082641000,-514.55794395,0.000121,7]
[421736402,1778082641000,-496.47127164,0.00012131,2]
[421736405,1778082641000,-23063.385673,0.00012142,2]
[421736404,1778082641000,-200.0,0.00012141,2]
[421736403,1778082641000,-599.60298507,0.00012131,2]
[421736411,1778082641000,-500.0,0.00012328,2]
[421736406,1778082641000,-151.0,0.000122,2]
[421736410,1778082641000,-151.0,0.00012328,2]
[421736407,1778082641000,-600.0,0.00012253,2]
[421736409,1778082641000,-151.0,0.00012328,2]
[421736338,1778082641000,-2145.7,0.00012054,2]
[421736389,1778082641000,-1784.48,0.00012054,2]
[421736384,1778082641000,-1014.6,0.00012054,2]
[421736408,1778082641000,-1384.2316,0.00012328,2]
[421736377,1778082641000,-740.88,0.00012054,2]
[421736378,1778082641000,-570.37,0.00012054,2]
[421736339,1778082641000,-2950.32,0.00012054,2]
[421736358,1778082641000,-2547.53,0.00012054,2]
[421736347,1778082641000,-500.0,0.00012054,2]
[421736349,1778082641000,-500.0,0.00012054,2]
[421736350,1778082641000,-500.0,0.00012054,2]
[421736353,1778082641000,-2049.64,0.00012054,2]
[421736357,1778082641000,-879.58,0.00012054,2]
[421736352,1778082641000,-973.66,0.00012054,2]
[421736360,1778082641000,-2836.47,0.00012054,2]
[421736359,1778082641000,-500.0,0.00012054,2]
[421736355,1778082641000,-777.03,0.00012054,2]
[421736351,1778082641000,-572.8,0.00012054,2]
[421736356,1778082641000,-998.2,0.00012054,2]
[421736354,1778082641000,-500.0,0.00012054,2]
[421736348,1778082641000,-1014.29,0.00012054,2]
[421736373,1778082641000,-402.98038336,0.00012054,2]
[421736362,1778082641000,-500.0,0.00012054,2]
[421736376,1778082641000,-500.0,0.00012054,2]
[421736364,1778082641000,-500.0,0.00012054,2]
[421736366,1778082641000,-1363.48,0.00012054,2]
[421736368,1778082641000,-1594.25,0.00012054,2]
[421736365,1778082641000,-15016.37,0.00012054,2]
[421736370,1778082641000,-3031.73,0.00012054,2]
[421736379,1778082641000,-843.63,0.00012054,2]
[421736369,1778082641000,-919.28,0.00012054,2]
[421736371,1778082641000,-1150.62,0.00012054,2]
[421736367,1778082641000,-500.0,0.00012054,2]
[421736374,1778082641000,-500.0,0.00012054,2]
[421736361,1778082641000,-714.55,0.00012054,2]
[421736363,1778082641000,-613.1,0.00012054,2]
[421736372,1778082641000,-694.22,0.00012054,2]
[421736458,1778082642000,-2547.53,0.00012328,2]
[421736455,1778082642000,-998.2,0.00012328,2]
[421736446,1778082642000,-905.65,0.00012328,2]
[421736448,1778082642000,-1014.29,0.00012328,2]
[421736451,1778082642000,-572.8,0.00012328,2]
[421736447,1778082642000,-500.0,0.00012328,2]
[421736449,1778082642000,-500.0,0.00012328,2]
[421736452,1778082642000,-973.66,0.00012328,2]
[421736445,1778082642000,-1077.61,0.00012328,2]
[421736461,1778082642000,-714.55,0.00012328,2]
[421736444,1778082642000,-500.0,0.00012328,2]
[421736450,1778082642000,-500.0,0.00012328,2]
[421736442,1778082642000,-3067.69,0.00012328,2]
[421736467,1778082642000,-1363.48,0.00012328,2]
[421736457,1778082642000,-879.58,0.00012328,2]
[421736463,1778082642000,-500.0,0.00012328,2]
[421736460,1778082642000,-2836.47,0.00012328,2]
[421736456,1778082642000,-777.03,0.00012328,2]
[421736466,1778082642000,-15016.37,0.00012328,2]
[421736468,1778082642000,-500.0,0.00012328,2]
[421736464,1778082642000,-613.1,0.00012328,2]
[421736465,1778082642000,-500.0,0.00012328,2]
[421736469,1778082642000,-1594.25,0.00012328,2]
[421736471,1778082642000,-919.28,0.00012328,2]
[421736481,1778082642000,-3404.47,0.00012328,2]
[421736482,1778082642000,-3790.81,0.00012328,2]
[421736454,1778082642000,-500.0,0.00012328,2]
[421736472,1778082642000,-3031.73,0.00012328,2]
[421736459,1778082642000,-156.07014781,0.00012328,2]
[421736453,1778082642000,-2049.64,0.00012328,2]
[421736422,1778082642000,-500.0,0.00012328,2]
[421736440,1778082642000,-2950.32,0.00012328,2]
[421736483,1778082642000,-500.0,0.00012328,2]
[421736414,1778082642000,-500.0,0.00012328,2]
[421736412,1778082642000,-500.0,0.00012328,2]
[421736415,1778082642000,-500.0,0.00012328,2]
[421736413,1778082642000,-500.0,0.00012328,2]
[421736417,1778082642000,-500.0,0.00012328,2]
[421736427,1778082642000,-500.0,0.00012328,2]
[421736429,1778082642000,-500.0,0.00012328,2]
[421736418,1778082642000,-500.0,0.00012328,2]
[421736426,1778082642000,-500.0,0.00012328,2]
[421736416,1778082642000,-500.0,0.00012328,2]
[421736419,1778082642000,-1145.43,0.00012328,2]
[421736423,1778082642000,-884.2,0.00012328,2]
[421736443,1778082642000,-800.73,0.00012328,2]
[421736420,1778082642000,-212.56181112,0.00012328,2]
[421736425,1778082642000,-427.90693014,0.00012328,2]
[421736421,1778082642000,-500.0,0.00012328,2]
[421736431,1778082642000,-500.0,0.00012328,2]
[421736441,1778082642000,-741.62,0.00012328,2]
[421736430,1778082642000,-500.0,0.00012328,2]
[421736433,1778082642000,-835.86,0.00012328,2]
[421736432,1778082642000,-576.09,0.00012328,2]
[421736434,1778082642000,-776.1,0.00012328,2]
[421736435,1778082642000,-928.28,0.00012328,2]
[421736436,1778082642000,-500.0,0.00012328,2]
[421736438,1778082642000,-734.79,0.00012328,2]
[421736439,1778082642000,-2145.7,0.00012328,2]
[421736437,1778082642000,-500.0,0.00012328,2]
[421736424,1778082642000,-500.0,0.00012328,2]
[421736473,1778082642000,-1150.62,0.00012328,2]
[421736428,1778082642000,-500.0,0.00012328,2]
[421736474,1778082642000,-694.22,0.00012328,2]
[421736514,1778082642000,-500.0,0.00012602,2]
[421736513,1778082642000,-289.146208,0.00012602,2]
[421736517,1778082642000,-500.0,0.00012602,2]
[421736512,1778082642000,-151.0,0.00012602,2]
[421736515,1778082642000,-500.0,0.00012602,2]
[421736520,1778082642000,-500.0,0.00012602,2]
[421736522,1778082642000,-500.0,0.00012602,2]
[421736528,1778082642000,-500.0,0.00012602,2]
[421736525,1778082642000,-1145.43,0.00012602,2]
[421736530,1778082642000,-500.0,0.00012602,2]
[421736532,1778082642000,-500.0,0.00012602,2]
[421736531,1778082642000,-884.2,0.00012602,2]
[421736533,1778082642000,-500.0,0.00012602,2]
[421736511,1778082642000,-500.0,0.00012602,2]
[421736534,1778082642000,-500.0,0.00012602,2]
[421736536,1778082642000,-500.0,0.00012602,2]
[421736545,1778082642000,-734.79,0.00012602,2]
[421736546,1778082642000,-2145.7,0.00012602,2]
[421736538,1778082642000,-500.0,0.00012602,2]
[421736537,1778082642000,-500.0,0.00012602,2]
[421736539,1778082642000,-576.09,0.00012602,2]
[421736543,1778082642000,-500.0,0.00012602,2]
[421736541,1778082642000,-776.1,0.00012602,2]
[421736544,1778082642000,-500.0,0.00012602,2]
[421736540,1778082642000,-835.86,0.00012602,2]
[421736542,1778082642000,-928.28,0.00012602,2]
[421736548,1778082642000,-741.62,0.00012602,2]
[421736479,1778082642000,-570.37,0.00012328,2]
[421736535,1778082642000,-500.0,0.00012602,2]
[421736500,1778082642000,-151.0,0.000124,2]
[421736547,1778082642000,-2950.32,0.00012602,2]
[421736507,1778082642000,-151.0,0.00012602,2]
[421736508,1778082642000,-500.0,0.00012602,2]
[421736475,1778082642000,-500.0,0.00012328,2]
[421736478,1778082642000,-740.88,0.00012328,2]
[421736480,1778082642000,-843.63,0.00012328,2]
[421736477,1778082642000,-500.0,0.00012328,2]
[421736485,1778082642000,-1014.6,0.00012328,2]
[421736496,1778082642000,-306.41,0.00012329,2]
[421736495,1778082642000,-306.41,0.00012329,2]
[421736497,1778082642000,-306.45,0.00012329,2]
[421736486,1778082642000,-750.5,0.00012328,2]
[421736493,1778082642000,-306.41,0.00012329,2]
[421736484,1778082642000,-1792.75,0.00012328,2]
[421736494,1778082642000,-306.41,0.00012329,2]
[421736488,1778082642000,-500.0,0.00012328,2]
[421736476,1778082642000,-1383.64,0.00012328,2]
[421736490,1778082642000,-968.53,0.00012328,2]
[421736489,1778082642000,-1784.48,0.00012328,2]
[421736506,1778082642000,-1384.2316,0.00012602,2]
[421736502,1778082642000,-151.0,0.000125,2]
[421736505,1778082642000,-200.0,0.00012593,2]
[421736503,1778082642000,-229.64099063,0.00012524,2]
[421736504,1778082642000,-409.4035167,0.00012543,2]
[421736501,1778082642000,-32219.620875,0.00012404,2]
[421736498,1778082642000,-680.34,0.00012329,2]
[421736509,1778082642000,-500.0,0.00012602,2]
[421736499,1778082642000,-455.6348996,0.00012376,2]
[421736492,1778082642000,-500.0,0.00012328,2]
[421736487,1778082642000,-500.0,0.00012328,2]
[421736491,1778082642000,-500.0,0.00012328,2]
[421736510,1778082642000,-151.0,0.00012602,2]
[421736591,1778082643000,-500.0,0.00012602,2]
[421736586,1778082643000,-3790.81,0.00012602,2]
[421736585,1778082643000,-3404.47,0.00012602,2]
[421736584,1778082643000,-843.63,0.00012602,2]
[421736582,1778082643000,-740.88,0.00012602,2]
[421736589,1778082643000,-1014.6,0.00012602,2]
[421736588,1778082643000,-1792.75,0.00012602,2]
[421736581,1778082643000,-500.0,0.00012602,2]
[421736601,1778082643000,-341586.49885451,0.000127,2]
[421736580,1778082643000,-1383.64,0.00012602,2]
[421736583,1778082643000,-570.37,0.00012602,2]
[421736579,1778082643000,-500.0,0.00012602,2]
[421736592,1778082643000,-500.0,0.00012602,2]
[421736603,1778082643000,-151.0,0.000127,2]
[421736593,1778082643000,-1784.48,0.00012602,2]
[421736596,1778082643000,-500.0,0.00012602,2]
[421736590,1778082643000,-750.5,0.00012602,2]
[421736594,1778082643000,-968.53,0.00012602,2]
[421736595,1778082643000,-500.0,0.00012602,2]
[421736599,1778082643000,-514.84070869,0.00012679,2]
[421736598,1778082643000,-296.0,0.00012603,3]
[421736600,1778082643000,-621.78829552,0.00012679,2]
[421736605,1778082643000,-204.42,0.00012767,2]
[421736614,1778082643000,-500.0,0.00012876,2]
[421736587,1778082643000,-500.0,0.00012602,2]
[421736613,1778082643000,-500.0,0.00012876,2]
[421736602,1778082643000,-151.0,0.000127,2]
[421736578,1778082643000,-694.22,0.00012602,2]
[421736564,1778082643000,-879.58,0.00012602,2]
[421736575,1778082643000,-919.28,0.00012602,2]
[421736615,1778082643000,-500.0,0.00012876,2]
[421736550,1778082643000,-800.73,0.00012602,2]
[421736552,1778082643000,-1077.61,0.00012602,2]
[421736553,1778082643000,-905.65,0.00012602,2]
[421736549,1778082643000,-3067.69,0.00012602,2]
[421736551,1778082643000,-500.0,0.00012602,2]
[421736555,1778082643000,-1014.29,0.00012602,2]
[421736561,1778082643000,-300.0,0.00012602,2]
[421736557,1778082643000,-500.0,0.00012602,2]
[421736560,1778082643000,-2049.64,0.00012602,2]
[421736554,1778082643000,-500.0,0.00012602,2]
[421736556,1778082643000,-500.0,0.00012602,2]
[421736558,1778082643000,-572.8,0.00012602,2]
[421736559,1778082643000,-973.66,0.00012602,2]
[421736563,1778082643000,-777.03,0.00012602,2]
[421736562,1778082643000,-998.2,0.00012602,2]
[421736565,1778082643000,-2547.53,0.00012602,2]
[421736566,1778082643000,-2836.47,0.00012602,2]
[421736568,1778082643000,-500.0,0.00012602,2]
[421736567,1778082643000,-714.55,0.00012602,2]
[421736569,1778082643000,-613.1,0.00012602,2]
[421736570,1778082643000,-500.0,0.00012602,2]
[421736573,1778082643000,-500.0,0.00012602,2]
[421736572,1778082643000,-1363.48,0.00012602,2]
[421736571,1778082643000,-15016.37,0.00012602,2]
[421736574,1778082643000,-1594.25,0.00012602,2]
[421736576,1778082643000,-3031.73,0.00012602,2]
[421736577,1778082643000,-1150.62,0.00012602,2]
[421736608,1778082643000,-173.37243775,0.00012849,2]
[421736611,1778082643000,-500.0,0.00012876,2]
[421736607,1778082643000,-1152.0,0.00012823,2]
[421736643,1778082643000,-905.65,0.00012876,2]
[421736645,1778082643000,-1014.29,0.00012876,2]
[421736646,1778082643000,-500.0,0.00012876,2]
[421736644,1778082643000,-269.98252052,0.00012876,2]
[421736648,1778082643000,-572.8,0.00012876,2]
[421736647,1778082643000,-500.0,0.00012876,2]
[421736649,1778082643000,-973.66,0.00012876,2]
[421736650,1778082643000,-2049.64,0.00012876,2]
[421736651,1778082643000,-998.2,0.00012876,2]
[421736652,1778082643000,-777.03,0.00012876,2]
[421736653,1778082643000,-879.58,0.00012876,2]
[421736654,1778082643000,-2547.53,0.00012876,2]
[421736655,1778082643000,-2836.47,0.00012876,2]
[421736657,1778082643000,-500.0,0.00012876,2]
[421736656,1778082643000,-714.55,0.00012876,2]
[421736663,1778082643000,-1594.25,0.00012876,2]
[421736659,1778082643000,-500.0,0.00012876,2]
[421736661,1778082643000,-1363.48,0.00012876,2]
[421736658,1778082643000,-613.1,0.00012876,2]
[421736664,1778082643000,-919.28,0.00012876,2]
[421736662,1778082643000,-500.0,0.00012876,2]
[421736660,1778082643000,-15016.37,0.00012876,2]
[421736665,1778082643000,-3031.73,0.00012876,2]
[421736604,1778082643000,-151.0,0.000127,2]
[421736666,1778082643000,-1150.62,0.00012876,2]
[421736668,1778082643000,-500.0,0.00012876,2]
[421736669,1778082643000,-1383.64,0.00012876,2]
[421736642,1778082643000,-1077.61,0.00012876,2]
[421736641,1778082643000,-500.0,0.00012876,2]
[421736667,1778082643000,-694.22,0.00012876,2]
[421736639,1778082643000,-3067.69,0.00012876,2]
[421736640,1778082643000,-800.73,0.00012876,2]
[421736606,1778082643000,-51010.70690668,0.000128,3]
[421736610,1778082643000,-500.0,0.00012876,2]
[421736609,1778082643000,-1384.2316,0.00012876,2]
[421736616,1778082643000,-500.0,0.00012876,2]
[421736618,1778082643000,-1145.43,0.00012876,2]
[421736619,1778082643000,-500.0,0.00012876,2]
[421736617,1778082643000,-500.0,0.00012876,2]
[421736620,1778082643000,-500.0,0.00012876,2]
[421736622,1778082643000,-500.0,0.00012876,2]
[421736625,1778082643000,-500.0,0.00012876,2]
[421736628,1778082643000,-500.0,0.00012876,2]
[421736626,1778082643000,-500.0,0.00012876,2]
[421736612,1778082643000,-500.0,0.00012876,2]
[421736627,1778082643000,-500.0,0.00012876,2]
[421736623,1778082643000,-500.0,0.00012876,2]
[421736637,1778082643000,-741.62,0.00012876,2]
[421736634,1778082643000,-500.0,0.00012876,2]
[421736635,1778082643000,-734.79,0.00012876,2]
[421736633,1778082643000,-500.0,0.00012876,2]
[421736636,1778082643000,-2145.7,0.00012876,2]
[421736632,1778082643000,-928.28,0.00012876,2]
[421736621,1778082643000,-884.2,0.00012876,2]
[421736630,1778082643000,-835.86,0.00012876,2]
[421736638,1778082643000,-2950.32,0.00012876,2]
[421736629,1778082643000,-576.09,0.00012876,2]
[421736631,1778082643000,-776.1,0.00012876,2]
[421736624,1778082643000,-485.57281504,0.00012876,2]
[421736694,1778082644000,-811.0,0.00012907,2]
[421736709,1778082644000,-500.0,0.0001315,2]
[421736700,1778082644000,-155.0,0.00013148,2]
[421736717,1778082644000,-500.0,0.0001315,2]
[421736695,1778082644000,-173.37243775,0.00012986,2]
[421736699,1778082644000,-173.37243775,0.00013123,2]
[421736696,1778082644000,-885.39,0.00013,5]
[421736705,1778082644000,-500.0,0.0001315,2]
[421736715,1778082644000,-500.0,0.0001315,2]
[421736716,1778082644000,-500.0,0.0001315,2]
[421736698,1778082644000,-200.0,0.00013044,2]
[421736713,1778082644000,-500.0,0.0001315,2]
[421736707,1778082644000,-500.0,0.0001315,2]
[421736710,1778082644000,-500.0,0.0001315,2]
[421736712,1778082644000,-500.0,0.0001315,2]
[421736711,1778082644000,-1145.43,0.0001315,2]
[421736714,1778082644000,-884.2,0.0001315,2]
[421736708,1778082644000,-500.0,0.0001315,2]
[421736718,1778082644000,-500.0,0.0001315,2]
[421736723,1778082644000,-776.1,0.0001315,2]
[421736724,1778082644000,-928.28,0.0001315,2]
[421736693,1778082644000,-7558.787632,0.000129,2]
[421736706,1778082644000,-500.0,0.0001315,2]
[421736703,1778082644000,-500.0,0.0001315,2]
[421736681,1778082644000,-500.0,0.00012876,2]
[421736704,1778082644000,-500.0,0.0001315,2]
[421736675,1778082644000,-500.0,0.00012876,2]
[421736677,1778082644000,-1792.75,0.00012876,2]
[421736676,1778082644000,-3790.81,0.00012876,2]
[421736672,1778082644000,-570.37,0.00012876,2]
[421736671,1778082644000,-740.88,0.00012876,2]
[421736670,1778082644000,-500.0,0.00012876,2]
[421736674,1778082644000,-3404.47,0.00012876,2]
[421736673,1778082644000,-843.63,0.00012876,2]
[421736678,1778082644000,-1014.6,0.00012876,2]
[421736680,1778082644000,-500.0,0.00012876,2]
[421736679,1778082644000,-750.5,0.00012876,2]
[421736688,1778082644000,-822.0,0.00012893,2]
[421736690,1778082644000,-7558.787632,0.000129,2]
[421736685,1778082644000,-500.0,0.00012876,2]
[421736691,1778082644000,-7558.787632,0.000129,2]
[421736687,1778082644000,-822.0,0.00012893,2]
[421736682,1778082644000,-1784.48,0.00012876,2]
[421736689,1778082644000,-1300.7,0.000129,2]
[421736684,1778082644000,-500.0,0.00012876,2]
[421736683,1778082644000,-968.53,0.00012876,2]
[421736686,1778082644000,-822.0,0.00012893,2]
[421736692,1778082644000,-7558.787632,0.000129,2]
[421736701,1778082644000,-155.0,0.00013148,2]
[421736702,1778082644000,-1384.2316,0.0001315,2]
[421736719,1778082644000,-500.0,0.0001315,2]
[421736697,1778082644000,-1000.0,0.00013014,2]
[421736725,1778082644000,-500.0,0.0001315,2]
[421736753,1778082644000,-500.0,0.0001315,2]
[421736752,1778082644000,-1363.48,0.0001315,2]
[421736755,1778082644000,-919.28,0.0001315,2]
[421736754,1778082644000,-1594.25,0.0001315,2]
[421736757,1778082644000,-1150.62,0.0001315,2]
[421736759,1778082644000,-500.0,0.0001315,2]
[421736758,1778082644000,-694.22,0.0001315,2]
[421736756,1778082644000,-3031.73,0.0001315,2]
[421736761,1778082644000,-500.0,0.0001315,2]
[421736760,1778082644000,-1383.64,0.0001315,2]
[421736762,1778082644000,-740.88,0.0001315,2]
[421736763,1778082644000,-570.37,0.0001315,2]
[421736764,1778082644000,-843.63,0.0001315,2]
[421736765,1778082644000,-3404.47,0.0001315,2]
[421736768,1778082644000,-1792.75,0.0001315,2]
[421736772,1778082644000,-500.0,0.0001315,2]
[421736771,1778082644000,-500.0,0.0001315,2]
[421736766,1778082644000,-500.0,0.0001315,2]
[421736769,1778082644000,-1014.6,0.0001315,2]
[421736767,1778082644000,-3790.81,0.0001315,2]
[421736770,1778082644000,-750.5,0.0001315,2]
[421736773,1778082644000,-1784.48,0.0001315,2]
[421736774,1778082644000,-968.53,0.0001315,2]
[421736751,1778082644000,-15016.37,0.0001315,2]
[421736750,1778082644000,-500.0,0.0001315,2]
[421736720,1778082644000,-500.0,0.0001315,2]
[421736746,1778082644000,-2836.47,0.0001315,2]
[421736749,1778082644000,-613.1,0.0001315,2]
[421736722,1778082644000,-835.86,0.0001315,2]
[421736721,1778082644000,-576.09,0.0001315,2]
[421736726,1778082644000,-500.0,0.0001315,2]
[421736728,1778082644000,-2145.7,0.0001315,2]
[421736727,1778082644000,-734.79,0.0001315,2]
[421736732,1778082644000,-800.73,0.0001315,2]
[421736729,1778082644000,-741.62,0.0001315,2]
[421736730,1778082644000,-2950.32,0.0001315,2]
[421736734,1778082644000,-1077.61,0.0001315,2]
[421736733,1778082644000,-500.0,0.0001315,2]
[421736735,1778082644000,-905.65,0.0001315,2]
[421736731,1778082644000,-3067.69,0.0001315,2]
[421736740,1778082644000,-973.66,0.0001315,2]
[421736741,1778082644000,-2049.64,0.0001315,2]
[421736743,1778082644000,-777.03,0.0001315,2]
[421736738,1778082644000,-500.0,0.0001315,2]
[421736748,1778082644000,-500.0,0.0001315,2]
[421736742,1778082644000,-998.2,0.0001315,2]
[421736737,1778082644000,-500.0,0.0001315,2]
[421736739,1778082644000,-572.8,0.0001315,2]
[421736744,1778082644000,-879.58,0.0001315,2]
[421736745,1778082644000,-2547.53,0.0001315,2]
[421736747,1778082644000,-714.55,0.0001315,2]
[421736736,1778082644000,-1014.29,0.0001315,2]
[421736811,1778082645000,-776.1,0.00013424,2]
[421736810,1778082645000,-835.86,0.00013424,2]
[421736806,1778082645000,-500.0,0.00013424,2]
[421736809,1778082645000,-576.09,0.00013424,2]
[421736803,1778082645000,-500.0,0.00013424,2]
[421736807,1778082645000,-500.0,0.00013424,2]
[421736805,1778082645000,-500.0,0.00013424,2]
[421736804,1778082645000,-500.0,0.00013424,2]
[421736812,1778082645000,-928.28,0.00013424,2]
[421736808,1778082645000,-500.0,0.00013424,2]
[421736814,1778082645000,-528.26548219,0.00013424,2]
[421736823,1778082645000,-905.65,0.00013424,2]
[421736815,1778082645000,-734.79,0.00013424,2]
[421736816,1778082645000,-2145.7,0.00013424,2]
[421736820,1778082645000,-800.73,0.00013424,2]
[421736817,1778082645000,-741.62,0.00013424,2]
[421736818,1778082645000,-2950.32,0.00013424,2]
[421736819,1778082645000,-3067.69,0.00013424,2]
[421736822,1778082645000,-1077.61,0.00013424,2]
[421736831,1778082645000,-777.03,0.00013424,2]
[421736821,1778082645000,-500.0,0.00013424,2]
[421736832,1778082645000,-879.58,0.00013424,2]
[421736800,1778082645000,-500.0,0.00013424,2]
[421736813,1778082645000,-500.0,0.00013424,2]
[421736801,1778082645000,-500.0,0.00013424,2]
[421736788,1778082645000,-191.2010725,0.00013365,14]
[421736799,1778082645000,-1145.43,0.00013424,2]
[421736830,1778082645000,-998.2,0.00013424,2]
[421736783,1778082645000,-644.79446246,0.00013227,2]
[421736777,1778082645000,-166.59,0.00013157,2]
[421736782,1778082645000,-533.88981491,0.00013227,2]
[421736775,1778082645000,-500.0,0.0001315,2]
[421736778,1778082645000,-10874.76088946,0.00013161,2]
[421736776,1778082645000,-500.0,0.0001315,2]
[421736781,1778082645000,-247.5,0.000132,2]
[421736779,1778082645000,-813.041402,0.00013174,2]
[421736780,1778082645000,-500.0,0.00013183,2]
[421736785,1778082645000,-173.37243775,0.0001326,2]
[421736802,1778082645000,-884.2,0.00013424,2]
[421736784,1778082645000,-7558.787632,0.00013236,2]
[421736787,1778082645000,-210.75610869,0.00013365,14]
[421736792,1778082645000,-500.0,0.00013424,2]
[421736789,1778082645000,-173.37243775,0.00013397,2]
[421736790,1778082645000,-1384.2316,0.00013424,2]
[421736791,1778082645000,-500.0,0.00013424,2]
[421736794,1778082645000,-500.0,0.00013424,2]
[421736795,1778082645000,-500.0,0.00013424,2]
[421736796,1778082645000,-500.0,0.00013424,2]
[421736793,1778082645000,-500.0,0.00013424,2]
[421736797,1778082645000,-500.0,0.00013424,2]
[421736798,1778082645000,-500.0,0.00013424,2]
[421736786,1778082645000,-11992.96055,0.00013299,2]
[421736824,1778082645000,-1014.29,0.00013424,2]
[421736826,1778082645000,-500.0,0.00013424,2]
[421736877,1778082645000,-2000.0,0.000135,2]
[421736861,1778082645000,-500.0,0.00013424,2]
[421736869,1778082645000,-2000.0,0.000135,2]
[421736863,1778082645000,-968.53,0.00013424,2]
[421736858,1778082645000,-1014.6,0.00013424,2]
[421736862,1778082645000,-1784.48,0.00013424,2]
[421736860,1778082645000,-500.0,0.00013424,2]
[421736864,1778082645000,-500.0,0.00013424,2]
[421736865,1778082645000,-500.0,0.00013424,2]
[421736867,1778082645000,-2000.0,0.000135,2]
[421736868,1778082645000,-2000.0,0.000135,2]
[421736871,1778082645000,-2000.0,0.000135,2]
[421736859,1778082645000,-750.5,0.00013424,2]
[421736881,1778082645000,-1167.0,0.000135,2]
[421736875,1778082645000,-2000.0,0.000135,2]
[421736874,1778082645000,-2000.0,0.000135,2]
[421736876,1778082645000,-2000.0,0.000135,2]
[421736872,1778082645000,-2000.0,0.000135,2]
[421736880,1778082645000,-2000.0,0.000135,2]
[421736870,1778082645000,-2000.0,0.000135,2]
[421736873,1778082645000,-2000.0,0.000135,2]
[421736878,1778082645000,-2000.0,0.000135,2]
[421736879,1778082645000,-2000.0,0.000135,2]
[421736827,1778082645000,-572.8,0.00013424,2]
[421736883,1778082645000,-2000.0,0.000135,2]
[421736882,1778082645000,-2000.0,0.000135,2]
[421736855,1778082645000,-500.0,0.00013424,2]
[421736866,1778082645000,-200.0,0.00013495,2]
[421736849,1778082645000,-1383.64,0.00013424,2]